bitfinex/quotes_SOLUSD_20250419
["timestamp","ask_amount","ask_price","bid_price","bid_amount"]
[1745029757527,0.03,137.68,137.19,8.41568921]
[1745029758317,0.03,137.68,137.19,2.90666]
[1745029758835,0.03,137.68,137.2,11.940556]
[1745029759232,0.03,137.68,137.2,3.76473882]
[1745029759434,0.03,137.68,137.2,0.21575165]
[1745029760030,0.03,137.68,137.21,10.96421005]
[1745029761824,0.03,137.68,137.22,4.02236728]
[1745029762005,0.03,137.68,137.22,0.8496174]
[1745029762206,0.03,137.68,137.22,2.89269603]
[1745029762429,0.03,137.68,137.22,2.6500664]
[1745029763026,0.03,137.68,137.2,0.21575165]
[1745029763230,0.03,137.68,137.21,1.85843817]
[1745029763413,0.03,137.68,137.2,0.21575165]
[1745029763706,0.03,137.68,137.21,1.57430025]
[1745029763906,0.03,137.68,137.2,0.21575165]
[1745029764112,0.03,137.68,137.23,0.21570449]
[1745029766637,0.03,137.68,137.19,1.0]
[1745029766837,0.03,137.68,137.2,3.01278582]
[1745029767132,0.03,137.68,137.19,1.0]
[1745029767316,0.03,137.68,137.2,2.43410315]
[1745029767515,0.03,137.68,137.2,0.18893815]
[1745029767715,0.03,137.68,137.21,0.18893815]
[1745029767926,0.03,137.68,137.22,1.34309629]
[1745029768127,0.03,137.68,137.2,10.96421005]
[1745029768335,0.03,137.68,137.21,2.42409982]
[1745029768524,0.03,137.68,137.21,13.38830987]
[1745029768722,0.03,137.68,137.22,10.96421005]
[1745029769121,0.03,137.68,137.23,1.60175516]
[1745029769334,0.03,137.68,137.24,21.29792228]
[1745029769633,0.03,137.68,137.22,2.905182]
[1745029769849,0.03,137.68,137.25,2.73448846]
[1745029770035,0.03,137.68,137.26,10.96421005]
[1745029770236,0.03,137.68,137.26,14.79530341]
[1745029770439,0.03,137.68,137.27,0.55459066]
[1745029770628,0.03,137.68,137.28,12.45559115]
[1745029772343,0.03,137.68,137.28,1.4913811]
[1745029772643,0.03,137.68,137.29,10.96421005]
[1745029773437,0.03,137.68,137.26,2.904971]
[1745029773740,0.03,137.68,137.27,1.24827019]
[1745029773933,0.03,137.68,137.26,10.96421005]
[1745029774140,0.03,137.68,137.27,1.77285238]
[1745029774329,0.03,137.68,137.28,0.70914095]
[1745029774528,0.03,137.68,137.26,2.905393]
[1745029774731,0.03,137.68,137.27,1.24843899]
[1745029774934,0.03,137.68,137.27,0.4130938]
[1745029775138,0.03,137.68,137.27,0.91430092]
[1745029775331,0.03,137.68,137.28,0.4130938]
[1745029775533,0.03,137.68,137.26,2.905393]
[1745029775725,0.03,137.68,137.27,14.66781384]
[1745029775926,0.03,137.68,137.27,12.64253014]
[1745029777048,0.03,137.68,137.27,22.97624237]
[1745029777240,0.03,137.68,137.27,1.67832009]
[1745029777437,0.03,137.68,137.27,0.15516514]
[1745029777632,0.03,137.68,137.27,1.06905811]
[1745029777837,0.03,137.68,137.27,11.48493238]
[1745029778039,0.03,137.68,137.28,10.96421005]
[1745029778243,0.03,137.68,137.27,0.52072233]
[1745029778446,0.03,137.68,137.27,3.12434525]
[1745029778637,0.03,137.68,137.28,2.6317849]
[1745029778829,0.03,137.68,137.26,13.86960305]
[1745029779027,0.03,137.68,137.27,13.41623334]
[1745029779844,0.03,137.68,137.28,2.905182]
[1745029783349,0.03,137.68,137.28,13.86939205]
[1745029783536,0.03,137.68,137.29,10.96421005]
[1745029783742,0.03,137.68,137.28,2.905182]
[1745029784140,0.03,137.68,137.28,13.86939205]
[1745029784351,0.03,137.68,137.28,2.905182]
[1745029785150,0.03,137.68,137.28,13.86939205]
[1745029786859,0.03,137.68,137.28,2.905182]
[1745029788533,0.03,137.68,137.28,13.86939205]
[1745029789854,0.03,137.68,137.28,2.905182]
[1745029790857,0.03,137.68,137.28,13.86939205]
[1745029791157,0.03,137.68,137.28,10.96421005]
[1745029791455,0.03,137.68,137.29,2.905393]
[1745029793654,0.03,137.68,137.29,13.86960305]
[1745029793956,0.03,137.68,137.29,2.905393]
[1745029800254,0.03,137.68,137.29,13.86960305]
[1745029800456,0.03,137.68,137.29,2.905393]
[1745029801138,0.03,137.68,137.29,24.20331528]
[1745029801342,0.03,137.68,137.29,13.86960305]
[1745029801651,0.03,137.68,137.3,2.02144235]
[1745029803063,0.03,137.68,137.31,21.29792228]
[1745029803261,0.03,137.68,137.3,2.02144235]
[1745029803765,0.03,137.68,137.3,12.9856524]
[1745029803958,0.03,137.68,137.31,10.96421005]
[1745029804260,0.03,137.68,137.3,2.02144235]
[1745029804455,0.03,137.68,137.31,10.96421005]
[1745029804655,0.03,137.68,137.3,2.02144235]
[1745029804856,0.03,137.68,137.31,10.96421005]
[1745029805161,0.03,137.68,137.31,10.33371223]
[1745029805360,0.03,137.68,137.3,2.02144235]
[1745029809561,0.03,137.68,137.29,2.905393]
[1745029812663,0.03,137.68,137.28,24.95680235]
[1745029812961,0.03,137.68,137.28,27.86240635]
[1745029813163,0.03,137.68,137.28,49.7155532]
[1745029813353,0.03,137.68,137.28,46.8099492]
[1745029813555,0.03,137.68,137.29,2.905182]
[1745029817757,0.03,137.68,137.3,3.76473882]
[1745029818774,0.03,137.68,137.28,46.8099492]
[1745029819067,0.03,137.68,137.29,3.30074658]
[1745029819246,0.03,137.68,137.28,49.7155532]
[1745029819247,0.03,137.68,137.28,46.8099492]
[1745029819461,0.03,137.68,137.29,3.34374406]
[1745029819654,0.03,137.68,137.28,46.8099492]
[1745029819859,0.03,137.68,137.29,3.34374479]
[1745029820057,0.03,137.68,137.28,46.8099492]
[1745029820348,0.03,137.68,137.29,3.3437447]
[1745029820549,0.03,137.68,137.28,46.8099492]
[1745029823746,0.03,137.68,137.28,49.7157642]
[1745029825067,0.03,137.68,137.28,46.8099492]
[1745029826780,0.03,137.68,137.31,5.19001678]
[1745029827150,0.03,137.68,137.32,5.19001678]
[1745029828482,0.03,137.68,137.33,5.19001678]
[1745029829578,0.03,137.68,137.34,5.19001678]
[1745029830479,0.03,137.68,137.35,5.19001678]
[1745029833083,0.03,137.68,137.37,5.19001678]
[1745029833380,0.03,137.68,137.32,1.0]
[1745029834580,0.03,137.68,137.33,5.1352242]
[1745029835475,0.03,137.68,137.32,1.0]
[1745029855988,2.940678,137.68,137.32,1.0]
[1745029859195,2.940678,137.68,137.33,5.13083625]
[1745029860193,2.940678,137.68,137.34,5.13083625]
[1745029861394,2.940678,137.68,137.33,5.13083625]
[1745029861889,0.03,137.68,137.33,5.13083625]
[1745029862894,0.03,137.68,137.34,5.13083625]
[1745029863998,0.03,137.68,137.35,5.13083625]
[1745029864995,0.03,137.68,137.36,5.13083625]
[1745029865599,0.03,137.68,137.37,5.13083625]
[1745029866998,0.03,137.68,137.34,1.0]
[1745029874912,0.03,137.68,137.35,2.905815]
[1745029883612,0.03,137.68,137.34,1.0]
[1745029896405,0.03,137.68,137.35,5.14601966]
[1745029897430,0.03,137.68,137.36,5.14601966]
[1745029898421,0.03,137.68,137.34,1.0]
[1745029898422,0.03,137.68,137.37,5.14601966]
[1745029899224,0.03,137.68,137.38,5.14601966]
[1745029900032,0.03,137.68,137.36,5.14601966]
[1745029903829,0.03,137.68,137.37,5.14601966]
[1745029904631,0.03,137.68,137.38,5.14601966]
[1745029905631,0.03,137.68,137.36,5.14601966]
[1745029906832,5.17602,137.68,137.37,1.0]
[1745029907430,5.17602,137.68,137.38,5.14601966]
[1745029907734,0.03,137.68,137.38,5.14601966]
[1745029908136,5.17602,137.68,137.38,5.14601966]
[1745029911240,5.17602,137.68,137.37,1.0]
[1745029917638,0.03,137.68,137.37,1.0]
[1745029949267,21.863267,137.68,137.37,1.0]
[1745029959465,0.03,137.68,137.37,1.0]
[1745029959865,21.893267,137.68,137.37,1.0]
[1745029962183,0.03,137.68,137.37,1.0]
[1745029962477,21.901469,137.68,137.37,1.0]
[1745029966380,21.901469,137.68,137.37,0.20721862]
[1745029969582,21.901469,137.68,137.33,46.79291738]
[1745029969764,21.901469,137.68,137.33,46.02581738]
[1745029974577,0.03,137.68,137.33,46.02581738]
[1745029974882,21.899875,137.68,137.33,45.35941738]
[1745029975380,21.899875,137.68,137.33,44.49311738]
[1745029975573,21.899875,137.68,137.33,43.88731738]
[1745029975892,0.03,137.68,137.33,42.77221738]
[1745029976073,21.901469,137.68,137.33,42.27361738]
[1745029977777,21.901469,137.68,137.33,41.90431738]
[1745029979482,0.03,137.68,137.33,41.90431738]
[1745029979686,21.899875,137.68,137.33,41.90431738]
[1745029980971,0.03,137.68,137.33,41.90431738]
[1745029981281,21.903064,137.68,137.33,41.90431738]
[1745029982184,0.03,137.68,137.33,41.90431738]
[1745029982487,21.899875,137.68,137.33,41.08461738]
[1745029983090,0.03,137.68,137.33,41.08461738]
[1745029983488,21.901469,137.68,137.33,41.08461738]
[1745029984090,0.03,137.68,137.33,41.08461738]
[1745029984284,0.03,137.68,137.33,40.11161738]
[1745029984590,21.899874,137.68,137.33,40.11161738]
[1745029988394,29.67596864,137.68,137.33,40.11161738]
[1745029988594,7.77609464,137.67,137.33,35.68251738]
[1745029988983,7.77609464,137.67,137.33,32.35121738]
[1745029989186,7.77609464,137.67,137.33,28.73391738]
[1745029989388,7.77609464,137.67,137.33,25.64001738]
[1745029989585,7.77609464,137.67,137.33,17.88071738]
[1745029989784,21.899874,137.68,137.33,15.52241738]
[1745029989992,21.899874,137.68,137.33,13.52271738]
[1745029990191,21.899874,137.68,137.33,7.32251738]
[1745029990393,21.899874,137.68,137.33,5.14811738]
[1745029991197,21.899874,137.68,137.37,21.83882943]
[1745029991398,21.899874,137.68,137.37,19.41042943]
[1745029991585,21.899874,137.68,137.37,15.86802943]
[1745029991783,21.899874,137.68,137.37,12.73962943]
[1745029991994,21.899874,137.68,137.37,8.73312943]
[1745029992195,21.899874,137.68,137.37,5.21552943]
[1745029994700,0.03,137.68,137.37,5.21552943]
[1745029995014,5.24553,137.68,137.37,5.21552943]
[1745029996395,5.24553,137.68,137.37,4.37872943]
[1745029997305,5.24553,137.68,137.37,3.66642943]
[1745029999206,5.24553,137.68,137.37,3.07002943]
[1745029999403,5.24553,137.68,137.37,2.69372943]
[1745030001204,5.24553,137.68,137.37,2.25412943]
[1745030001517,5.24553,137.68,137.37,1.81592943]
[1745030003703,5.24553,137.68,137.37,1.52052943]
[1745030004106,5.24553,137.68,137.33,5.14811738]
[1745030004289,7.77609464,137.67,137.33,4.58141738]
[1745030004488,21.39596365,137.67,137.33,4.58141738]
[1745030005504,21.39596365,137.67,137.33,3.74571738]
[1745030005706,21.39596365,137.67,137.33,3.32931738]
[1745030010024,21.39596365,137.67,137.33,25.17450779]
[1745030010194,21.39596365,137.67,137.33,22.40320779]
[1745030010912,21.39596365,137.67,137.33,17.32330779]
[1745030011224,21.39596365,137.67,137.33,15.40640779]
[1745030011512,21.39596365,137.67,137.33,9.49400779]
[1745030011711,21.39596365,137.67,137.33,5.34890779]
[1745030011913,21.39596365,137.67,137.33,2.25830779]
[1745030012113,21.39596365,137.67,137.33,1.46190779]
[1745030012313,21.39596365,137.67,137.33,1.19400779]
[1745030012896,21.39596365,137.67,137.33,23.0391982]
[1745030013094,24.31407365,137.67,137.33,23.0391982]
[1745030013296,24.31407365,137.67,137.33,17.1252982]
[1745030013495,24.31407365,137.67,137.33,9.6478982]
[1745030013904,24.31407365,137.67,137.33,7.5652982]
[1745030014813,24.31407365,137.67,137.33,6.3300982]
[1745030015014,24.31407365,137.67,137.33,5.6300982]
[1745030015504,31.52753692,137.67,137.33,5.6300982]
[1745030015812,7.21346327,137.66,137.33,5.6300982]
[1745030015995,7.66627863,137.65,137.33,5.0074982]
[1745030016391,7.66627863,137.65,137.33,26.85268861]
[1745030016594,7.66627863,137.65,137.33,23.88568861]
[1745030017214,14.8797419,137.65,137.33,23.88568861]
[1745030017404,14.8797419,137.65,137.33,9.02085159]
[1745030017605,7.21346327,137.64,137.27,0.063]
[1745030017810,7.66627863,137.65,137.27,0.063]
[1745030018301,0.063,137.28,137.27,0.063]
[1745030018502,0.252,137.25,137.22,0.063]
[1745030018702,10.72635722,137.64,137.22,0.063]
[1745030018915,2.920027,137.31,137.22,0.063]
[1745030019315,35.69058219,137.32,137.22,0.063]
[1745030019519,2.919815,137.31,137.22,0.063]
[1745030019818,0.063,137.23,137.22,0.063]
[1745030020018,2.919815,137.31,137.22,0.063]
[1745030020322,0.063,137.22,90.548,0.28596039]
[1745030020504,2.919815,137.31,90.548,0.28596039]
[1745030020701,2.919815,137.31,136.69,3.77445635]
[1745030021615,0.063,137.19,136.56,2.920028]
[1745030021819,2.919815,137.31,90.548,0.28596039]
[1745030022013,2.919815,137.31,136.67,3.77430169]
[1745030022720,16.76520678,137.32,136.67,3.77430169]
[1745030023023,2.920881,137.31,137.06,0.063]
[1745030025528,0.03,137.73,137.33,2.15910263]
[1745030025707,0.2787,137.21,137.06,0.063]
[1745030025910,0.6396,137.18,137.06,0.063]
[1745030029032,33.58424036,137.25,137.06,0.063]
[1745030030736,33.08424036,137.25,137.06,0.063]
[1745030031935,11.23904995,137.25,137.06,0.063]
[1745030035636,2.918749,137.35,137.33,10.60614046]
[1745030035950,0.8607,137.21,137.06,0.063]
[1745030036750,1.7269,137.21,137.06,0.063]
[1745030038544,5.18536631,137.24,137.06,0.063]
[1745030040944,0.03,137.37,137.06,0.063]
[1745030041626,20.78761275,137.37,137.06,0.063]
[1745030042139,20.78761275,137.37,137.33,9.34936883]
[1745030042342,9.34936883,137.2,137.06,0.063]
[1745030042536,2.949388,137.37,137.06,0.063]
[1745030044050,0.03,137.37,137.06,0.063]
[1745030048249,0.03,137.37,137.33,21.84519041]
[1745030048431,2.47790068,137.22,137.06,0.063]
[1745030048626,1.5973,137.21,137.06,0.063]
[1745030054549,2.948536,137.37,137.33,20.24789041]
[1745030054747,2.08488024,137.27,137.06,0.063]
[1745030055072,3.752381,137.1,137.06,0.063]
[1745030060858,0.9957,137.1,137.06,0.063]
[1745030061159,0.03,137.37,137.33,14.79140941]
[1745030061358,0.03,137.37,137.33,13.15830941]
[1745030061560,0.03,137.37,137.33,10.61370941]
[1745030061754,0.03,137.37,137.33,5.15840941]
[1745030061957,5.15840941,137.31,137.06,0.063]
[1745030062151,1.7321,137.1,137.06,0.063]
[1745030067262,1.7321,137.1,137.09,21.94643424]
[1745030070968,1.7321,137.1,137.09,22.16235901]
[1745030098389,1.7321,137.1,137.09,21.94643424]
[1745030100996,1.7321,137.1,137.09,22.16235901]
[1745030125825,0.063,137.16,137.09,22.16235901]
[1745030127123,0.063,137.16,137.1,0.21590902]
[1745030136931,0.063,137.16,137.09,21.94643424]
[1745030157750,0.063,137.16,137.1,0.21590902]
[1745030162055,0.063,137.16,137.09,21.94643424]
[1745030178765,0.063,137.16,137.1,1.33375013]
[1745030191589,0.063,137.16,137.11,0.21589327]
[1745030192078,0.063,137.16,137.12,1.33355559]
[1745030213595,0.063,137.16,137.13,0.21586179]
[1745030241220,0.063,137.16,137.12,1.33355559]
[1745030243022,11.47371652,137.15,137.12,1.33355559]
[1745030244733,0.063,137.16,137.12,1.33355559]
[1745030245726,11.47371652,137.14,137.12,1.33355559]
[1745030254747,5.05241639,137.15,137.12,1.33355559]
[1745030254748,11.47371652,137.15,137.12,1.33355559]
[1745030255042,11.47371652,137.15,137.09,70.89691992]
[1745030256341,11.53671652,137.16,137.09,70.89691992]
[1745030258345,11.47371652,137.15,137.09,70.89691992]
[1745030268046,11.53671652,137.16,137.09,70.89691992]
[1745030269761,11.53671652,137.16,137.09,21.94643424]
[1745030269933,0.063,137.16,137.09,21.94643424]
[1745030275163,11.47371652,137.15,137.09,21.94643424]
[1745030276464,11.53671652,137.16,137.09,21.94643424]
[1745030278168,0.063,137.16,137.09,21.94643424]
[1745030282072,11.47371652,137.14,137.09,21.94643424]
[1745030285387,0.063,137.16,137.09,21.94643424]
[1745030285775,0.063,137.16,137.1,5.25971106]
[1745030286774,0.063,137.16,137.09,84.61461428]
[1745030288577,0.063,137.16,137.09,70.93840112]
[1745030288781,0.063,137.16,137.1,5.25494708]
[1745030289791,0.063,137.16,137.09,84.61461428]
[1745030291272,0.063,137.16,137.1,5.25007699]
[1745030292583,0.063,137.16,137.09,70.93840112]
[1745030293081,11.47371652,137.15,137.09,70.93840112]
[1745030293983,0.063,137.16,137.09,70.93840112]
[1745030303697,0.063,137.16,137.09,21.94643424]
[1745030308092,0.063,137.16,137.1,0.21590902]
[1745030317197,0.063,137.16,137.1,0.09034769]
[1745030319404,0.063,137.16,137.11,0.0903411]
[1745030322694,0.063,137.16,137.1,0.09034769]
[1745030336411,3.61968852,137.16,137.1,0.09034769]
[1745030336712,3.61968852,137.16,137.09,21.94643424]
[1745030340900,3.61968852,137.16,137.09,0.063]
[1745030345023,3.25514852,137.16,137.09,0.063]
[1745030345199,0.8287,137.18,137.09,0.063]
[1745030346321,4.55693518,137.18,137.09,0.063]
[1745030347306,4.55693518,137.18,137.13,21.87705097]
[1745030354130,4.55693518,137.18,137.09,0.063]
[1745030360140,4.55693518,137.18,137.13,21.87705097]
[1745030364039,4.55693518,137.18,137.13,16.85541811]
[1745030364626,4.55693518,137.18,137.13,13.23341811]
[1745030365939,4.55693518,137.18,137.13,11.27278937]
[1745030370465,4.55693518,137.18,137.13,4.71378937]
[1745030376176,4.55693518,137.18,137.09,0.04300001]
[1745030376465,4.55693518,137.18,137.1,48.22628928]
[1745030380371,4.55693518,137.18,137.1,36.47199924]
[1745030381361,4.55693518,137.18,137.1,31.67199924]
[1745030381957,4.55693518,137.18,137.1,29.48199924]
[1745030384376,4.55693518,137.18,137.1,25.62199924]
[1745030387375,4.55693518,137.18,137.1,10.73176133]
[1745030387605,4.55693518,137.18,137.09,9.84321939]
[1745030387760,4.55693518,137.18,137.09,6.29021939]
[1745030399787,4.55693518,137.18,137.09,2.72421939]
[1745030402290,4.55693518,137.18,89.512,21.90383581]
[1745030402611,4.55693518,137.18,136.63,2.918323]
[1745030403288,4.55693518,137.18,136.92,5.90889523]
[1745030404592,4.55693518,137.18,137.1,21.88183807]
[1745030412100,4.55693518,137.18,136.98,0.03]
[1745030417407,4.55693518,137.18,137.1,21.88183807]
[1745030418610,4.55693518,137.18,137.1,18.29392764]
[1745030418907,4.55693518,137.18,137.1,5.00074113]
[1745030421594,4.55693518,137.18,136.99,39.45097437]
[1745030423694,4.55693518,137.18,137.1,21.88183807]
[1745030423920,4.55693518,137.18,137.1,19.67283807]
[1745030424119,4.55693518,137.18,137.1,11.43283807]
[1745030424301,4.55693518,137.18,136.9,0.03]
[1745030430028,4.55693518,137.18,137.1,21.88183807]
[1745030431939,4.55693518,137.18,137.1,6.10183807]
[1745030436342,4.55693518,137.18,136.9,0.03]
[1745030437839,4.55693518,137.18,136.91,5.24926598]
[1745030438540,4.55693518,137.18,136.92,5.24926598]
[1745030439344,4.55693518,137.18,136.93,5.24926598]
[1745030440321,4.55693518,137.18,136.94,5.24926598]
[1745030441340,4.55693518,137.18,136.95,5.24926598]
[1745030442445,4.55693518,137.18,136.96,5.24926598]
[1745030442738,4.55693518,137.18,137.04,21.89141856]
[1745030443350,4.55693518,137.18,137.05,5.24926598]
[1745030444141,4.55693518,137.18,137.04,21.89141856]
[1745030446244,4.55693518,137.18,137.05,5.23080951]
[1745030446445,4.55693518,137.18,137.05,16.85391269]
[1745030447329,4.55693518,137.18,137.06,5.23080951]
[1745030448647,4.55693518,137.18,137.07,5.23080951]
[1745030449945,4.55693518,137.18,137.05,11.62310318]
[1745030450248,11.47950667,137.13,137.05,11.62310318]
[1745030451357,11.47950667,137.13,137.06,5.23385743]
[1745030451932,4.55693518,137.18,137.06,5.23385743]
[1745030452347,4.55693518,137.18,137.07,5.23385743]
[1745030453250,4.55693518,137.18,137.05,11.62310318]
[1745030454251,4.55693518,137.18,137.06,5.23391506]
[1745030455051,4.55693518,137.18,137.07,5.23391506]
[1745030456149,4.55693518,137.18,137.04,21.89141856]
[1745030456964,4.55693518,137.18,137.05,5.23152469]
[1745030457155,4.55693518,137.18,137.05,16.85247436]
[1745030458059,4.55693518,137.18,137.06,5.23152469]
[1745030459131,4.55693518,137.18,137.07,5.23152469]
[1745030459834,4.55693518,137.18,137.08,5.23152469]
[1745030460851,4.55693518,137.18,137.06,11.62094967]
[1745030461954,4.55693518,137.18,137.07,5.22754221]
[1745030463047,4.55693518,137.18,137.08,5.22754221]
[1745030463955,0.8287,137.18,137.08,5.22754221]
[1745030464163,0.8287,137.18,137.09,5.22754221]
[1745030465053,0.8287,137.18,137.1,5.22754221]
[1745030466043,0.8287,137.18,137.11,5.22754221]
[1745030466956,0.8287,137.18,137.06,11.62094967]
[1745030467645,0.8287,137.18,137.07,5.22056729]
[1745030468646,0.8287,137.18,137.08,5.22056729]
[1745030469869,0.8287,137.18,137.07,5.22056729]
[1745030471264,0.8287,137.18,137.08,5.22056729]
[1745030472465,0.8287,137.18,137.09,5.22056729]
[1745030473259,0.8287,137.18,137.1,5.22056729]
[1745030474158,0.8287,137.18,137.06,11.62094967]
[1745030474862,0.8287,137.18,137.07,5.21600927]
[1745030475557,0.8287,137.18,137.06,11.62094967]
[1745030487865,0.8287,137.18,137.04,21.89141856]
[1745030565139,0.8287,137.18,137.04,18.37059467]
[1745030565636,0.8287,137.18,137.04,14.75859467]
[1745030565845,0.8287,137.18,88.842,0.58522727]
[1745030566041,9.51243519,137.17,136.66,3.708944]
[1745030566344,58.70214174,137.17,136.81,3.64063756]
[1745030566942,58.70214174,137.17,136.64,2.920027]
[1745030567146,58.70214174,137.17,136.83,5.76942266]
[1745030567941,58.70214174,137.17,136.64,2.920027]
[1745030568643,0.21586633,137.16,136.64,2.920027]
[1745030568839,9.72830152,137.16,136.64,2.920027]
[1745030569759,9.72830152,137.16,137.04,21.89141856]
[1745030571848,9.72830152,137.16,137.04,16.41872384]
[1745030572053,9.51243519,137.15,137.04,16.41872384]
[1745030572549,9.51243519,137.15,136.93,11.57098745]
[1745030573035,9.72830152,137.15,136.93,11.57098745]
[1745030574137,0.21586633,137.15,136.93,11.57098745]
[1745030575540,9.72830152,137.15,136.93,11.57098745]
[1745030576052,9.72830152,137.15,137.04,21.89141856]
[1745030577049,1.33078958,137.14,137.04,21.89141856]
[1745030579954,1.33078958,137.14,136.93,11.57098745]
[1745030580557,10.84322477,137.14,136.93,11.57098745]
[1745030582352,10.84322477,137.14,137.04,21.89141856]
[1745030590068,1.33078958,137.14,137.04,21.89141856]
[1745030593167,1.33078958,137.14,137.04,8.83741856]
[1745030593346,18.64377382,137.13,136.62,51.89221672]
[1745030593670,18.64377382,137.13,136.62,26.20520346]
[1745030594166,18.64377382,137.13,136.62,51.89221672]
[1745030594348,18.64377382,137.13,136.76,5.87853009]
[1745030594668,18.64377382,137.13,89.143,2.74025974]
[1745030594967,18.64377382,137.13,137.04,21.89141856]
[1745030595473,44.33078708,137.13,137.04,21.89141856]
[1745030595861,31.33078958,137.12,137.04,21.89141856]
[1745030596055,19.9745634,137.11,137.04,21.89141856]
[1745030596366,1.33078958,137.1,137.04,21.89141856]
[1745030596571,9.51243519,137.09,136.47,18.643774]
[1745030596758,1.33078958,137.08,136.47,18.643774]
[1745030596959,9.51243519,137.07,136.7,3.62872986]
[1745030597259,1.33078958,137.06,136.7,3.62872986]
[1745030597462,10.84322477,137.06,136.7,3.62872986]
[1745030598173,9.51243519,137.05,136.7,3.62872986]
[1745030598466,1.33078958,137.04,136.47,18.643774]
[1745030598670,1.33078958,137.04,89.143,2.74025974]
[1745030598671,17.42039615,137.03,136.48,15.95103731]
[1745030598853,17.42039615,137.03,136.48,21.77269102]
[1745030599055,1.33078958,137.02,136.48,21.77269102]
[1745030599270,9.51243519,137.01,136.48,21.77269102]
[1745030599572,1.33078958,137.0,136.48,21.77269102]
[1745030599872,10.84322477,137.0,136.48,21.77269102]
[1745030600273,8.28905752,136.99,136.48,25.41944431]
[1745030600463,9.6198471,136.99,136.48,25.41944431]
[1745030600864,18.75118573,136.99,136.48,25.41944431]
[1745030601162,9.6198471,136.99,136.49,51.89221672]
[1745030601359,25.68701326,137.05,137.04,11.42929035]
[1745030601584,0.2400036,137.01,136.74,0.03]
[1745030601769,1.83,136.89,136.74,0.03]
[1745030608083,14.1290552,136.99,136.74,0.03]
[1745030614498,1.33078958,137.05,137.04,7.76236336]
[1745030619590,1.33078958,137.05,137.04,2.28494468]
[1745030625314,10.10860991,137.05,137.04,2.28494468]
[1745030627218,10.10860991,137.05,136.74,0.03]
[1745030632419,8.77782033,137.04,136.74,0.03]
[1745030632617,24.98006424,137.04,136.74,0.03]
[1745030633410,24.98006424,137.04,136.74,21.96944712]
[1745030633610,24.98006424,137.04,136.74,65.59593223]
[1745030636422,24.98006424,137.04,136.74,21.96944712]
[1745030647432,16.20224391,137.04,136.74,21.96944712]
[1745030649429,24.98006424,137.04,136.74,21.96944712]
[1745030650635,3.50557562,137.03,136.74,21.96944712]
[1745030650818,8.77782033,137.03,136.74,21.96944712]
[1745030654735,16.20224391,137.04,136.74,21.96944712]
[1745030661345,8.77782033,137.03,136.74,21.96944712]
[1745030667257,1.33078958,137.05,136.74,21.96944712]
[1745030667958,10.10860991,137.05,136.74,21.96944712]
[1745030670070,8.77782033,137.04,136.74,21.96944712]
[1745030670360,23.65200867,137.04,136.74,21.96944712]
[1745030674555,1.33078958,137.03,136.74,21.96944712]
[1745030688281,5.47588995,137.02,136.74,21.96944712]
[1745030688884,2.7379452,137.01,136.74,21.96944712]
[1745030689582,5.47588995,137.0,136.74,21.96944712]
[1745030689784,2.7379452,136.99,136.74,21.96944712]
[1745030690184,5.47588995,136.98,136.74,21.96944712]
[1745030690486,2.7379452,136.97,136.74,21.96944712]
[1745030691195,5.47588995,136.96,136.74,21.96944712]
[1745030691686,2.7379452,136.95,136.74,21.96944712]
[1745030692087,5.47588995,136.94,136.74,21.96944712]
[1745030692686,5.47588995,136.93,136.74,21.96944712]
[1745030693284,2.7379452,136.92,136.74,21.96944712]
[1745030694086,5.47588995,136.91,136.74,21.96944712]
[1745030694277,8.21383515,136.91,136.74,21.96944712]
[1745030694985,2.7379452,136.9,136.74,21.96944712]
[1745030695186,8.21383515,136.9,136.74,21.96944712]
[1745030695690,2.7379452,136.89,136.74,21.96944712]
[1745030696093,5.47588995,136.88,136.74,21.96944712]
[1745030696473,2.7379452,136.87,136.74,21.96944712]
[1745030696873,5.47588995,136.86,136.74,21.96944712]
[1745030697074,2.7379452,136.85,136.74,21.96944712]
[1745030697592,5.47588995,136.84,136.74,21.96944712]
[1745030697773,2.7379452,136.83,136.74,21.96944712]
[1745030698390,5.47588995,136.82,136.74,21.96944712]
[1745030699190,5.47588995,136.81,136.74,21.96944712]